[Event "Kupreichik Memorial Rapid 2019"]
[Site "Minsk"]
[Date "2019.08.15"]
[Round "3.39"]
[White "Lashkevich, Andrei"]
[Black "Laptev, Viktor"]
[Result "1/2-1/2"]
[ECO "B30"]
[WhiteElo "1447"]
[BlackElo "1424"]
[Annotator "NA"]
[PlyCount "176"]
[EventDate "2019.08.15"]
[EventType "swiss"]
[EventCountry "BLR"]
[SourceTitle "playchess.com"]
[Source "ChessBase"]
[SourceQuality "1"]
[TimeControl "900+10"]

1. e4 {[%emt 0:00:00]} c5 {[%emt 0:00:00]} 2. Nf3 {[%emt 0:00:00]} Nc6 {[%emt 0:00:00]} 3. d3 {[%emt 0:00:00]} d6 {[%emt 0:00:00]} 4. g3 {[%emt 0:00:00]} g6 {[%emt 0:00:01]} 5. Bg2 {[%emt 0:00:00]} Bg7 {[%emt 0:00:02]} 6. c3 {[%emt 0:00:05]} Nf6 {[%emt 0:00:05]} 7. O-O {[%emt 0:00:02]} O-O {[%emt 0:00:02]} 8. Re1 {[%emt 0:00:02]} Bg4 {[%emt 0:00:19]} 9. h3 {[%emt 0:00:08]} Bd7 {[%emt 0:00:08]} 10. Nbd2 {[%emt 0:00:27]} Qc8 {[%emt 0:00:25]} 11. Kh2 {[%emt 0:00:02]} a6 {[%emt 0:00:01]} 12. Qc2 {[%emt 0:01:25]} Rb8 {[%emt 0:00:03]} 13. Nf1 {[%emt 0:00:13]} b5 {[%emt 0:00:01]} 14. Nh4 {[%emt 0:00:23]} e5 15. f4 {[%emt 0:00:52]} exf4 {[%emt 0:00:19]} 16. Bxf4 {[%emt 0:02:19]} Ne5 {[%emt 0:00:34]} 17. Bxe5 {[%emt 0:00:10]} dxe5 {[%emt 0:00:10]} 18. Nf3 {[%emt 0:00:00]} Re8 {[%emt 0:00:07]} 19. Ne3 Bc6 20. Rad1 {[%emt 0:00:42]} a5 {[%emt 0:00:35]} 21. Qf2 {[%emt 0:00:42]} b4 {[%emt 0:00:44]} 22. c4 {[%emt 0:00:16]} Ba4 {[%emt 0:01:10]} 23. Rd2 Qc7 {[%emt 0:00:01]} 24. Rc1 {[%emt 0:00:58]} Rbd8 25. b3 {[%emt 0:00:09]} Bc6 {[%emt 0:00:13]} 26. Nd5 {[%emt 0:00:08]} Bxd5 {[%emt 0:00:06]} 27. cxd5 {[%emt 0:00:02]} Nd7 {[%emt 0:00:31]} 28. Rdc2 {[%emt 0:00:34]} Qd6 {[%emt 0:00:01]} 29. Rf1 {[%emt 0:00:02]} Rf8 {[%emt 0:00:30]} 30. h4 {[%emt 0:00:01]} f5 {[%emt 0:00:02]} 31. Bh3 {[%emt 0:01:07]} Nf6 {[%emt 0:01:41]} 32. Qe2 {[%emt 0:02:17]} Ng4+ {[%emt 0:00:42]} 33. Bxg4 {[%emt 0:00:49]} fxg4 {[%emt 0:00:02]} 34. Ng5 {[%emt 0:00:14]} Rxf1 {[%emt 0:00:10]} 35. Qxf1 {[%emt 0:00:02]} Rf8 {[%emt 0:00:01]} 36. Qg1 {[%emt 0:00:44]} Rc8 {[%emt 0:00:26]} 37. Ne6 {[%emt 0:00:08]} Bf8 {[%emt 0:00:05]} 38. Qf2 {[%emt 0:00:34]} Qe7 {[%emt 0:00:30]} 39. Qe3 {[%emt 0:00:56]} h6 {[%emt 0:00:32]} 40. Kg2 {[%emt 0:00:15]} Kh7 {[%emt 0:00:01]} 41. Rf2 {[%emt 0:00:13]} Bg7 {[%emt 0:01:43]} 42. Qe2 {[%emt 0:00:32]} h5 {[%emt 0:00:02]} 43. Qf1 {[%emt 0:00:20]} Kg8 {[%emt 0:00:13]} 44. Qc1 {[%emt 0:00:07]} Kh7 {[%emt 0:00:27]} 45. Ng5+ {[%emt 0:00:16]} Kg8 {[%emt 0:00:00]} 46. Rf7 {[%emt 0:00:19]} Qd6 {[%emt 0:00:21]} 47. Qf1 {[%emt 0:00:10]} Rf8 {[%emt 0:00:10]} 48. Rxf8+ {[%emt 0:00:55]} Qxf8 {[%emt 0:00:08]} 49. Qxf8+ {[%emt 0:00:12]} Bxf8 {[%emt 0:00:20]} 50. Kf2 {[%emt 0:00:17]} Bd6 {[%emt 0:00:08]} 51. Ke2 {[%emt 0:00:03]} Kf8 {[%emt 0:00:11]} 52. Kd2 {[%emt 0:00:02]} Ke7 {[%emt 0:00:14]} 53. Kc2 {[%emt 0:00:04]} Kf6 {[%emt 0:00:01]} 54. Kb2 {[%emt 0:00:20]} Bb8 {[%emt 0:00:01]} 55. Kc2 {[%emt 0:00:26]} Bd6 {[%emt 0:00:01]} 56. Kd2 {[%emt 0:00:01]} Bb8 {[%emt 0:00:01]} 57. Ke3 {[%emt 0:00:01]} Bd6 {[%emt 0:00:01]} 58. Nh7+ {[%emt 0:00:02]} Kg7 {[%emt 0:00:00]} 59. Ng5 {[%emt 0:00:03]} Kf6 {[%emt 0:00:01]} 60. Ne6 {[%emt 0:00:00]} Ke7 {[%emt 0:00:04]} 61. Kd2 {[%emt 0:00:26]} Bb8 {[%emt 0:00:03]} 62. Nxc5 {[%emt 0:00:02]} Ba7 {[%emt 0:00:08]} 63. Nb7 {[%emt 0:00:28]} Bf2 {[%emt 0:00:01]} 64. Nxa5 {[%emt 0:00:07]} Bxg3 {[%emt 0:00:02]} 65. Nc6+ {[%emt 0:00:01]} Kd6 {[%emt 0:00:01]} 66. Nxb4 {[%emt 0:00:12]} Bxh4 {[%emt 0:00:03]} 67. Ke2 Bg5 {[%emt 0:00:05]} 68. Nc2 {[%emt 0:00:10]} h4 {[%emt 0:00:02]} 69. Kf2 {[%emt 0:00:11]} Bf4 {[%emt 0:00:05]} 70. Ne3 {[%emt 0:00:35]} g3+ {[%emt 0:00:13]} 71. Kf3 {[%emt 0:00:03]} h3 {[%emt 0:01:09]} 72. Ng4 {[%emt 0:00:42]} h2 {[%emt 0:02:17]} 73. Kg2 {[%emt 0:00:06]} Kc5 {[%emt 0:00:38]} 74. Nf6 {[%emt 0:00:09]} g5 {[%emt 0:00:12]} 75. Ne8 {[%emt 0:00:04]} g4 {[%emt 0:00:21]} 76. Nf6 {[%emt 0:00:05]} Kd4 {[%emt 0:00:06]} 77. Nxg4 {[%emt 0:00:40]} Kxd3 {[%emt 0:00:02]} 78. Nf6 {[%emt 0:00:01]} Bg5 {[%emt 0:00:03]} 79. Nh7 {[%emt 0:00:17]} Bd8 {[%emt 0:00:14]} 80. d6 {[%emt 0:00:26]} Kxe4 {[%emt 0:00:05]} 81. d7 {[%emt 0:00:02]} Kd5 {[%emt 0:00:05]} 82. Nf8 {[%emt 0:00:12]} e4 {[%emt 0:00:11]} 83. Ng6 {[%emt 0:00:13]} Bg5 {[%emt 0:00:32]} 84. a4 {[%emt 0:00:32]} e3 {[%emt 0:00:01]} 85. a5 {[%emt 0:00:08]} e2 {[%emt 0:00:02]} 86. d8=Q+ {[%emt 0:00:02]} Bxd8 {[%emt 0:00:06]} 87. Nf4+ {[%emt 0:00:02]} Ke4 {[%emt 0:00:07]} 88. Nxe2 {[%emt 0:00:02]} Bxa5 {[%emt 0:00:59]} 1/2-1/2

[Event "Kupreichik Memorial Rapid 2019"]
[Site "Minsk"]
[Date "2019.08.15"]
[Round "3.40"]
[White "Novik, Nikita"]
[Black "Arlou, Valery"]
[Result "0-1"]
[ECO "B08"]
[WhiteElo "1355"]
[BlackElo "1759"]
[Annotator "NA"]
[PlyCount "98"]
[EventDate "2019.08.15"]
[EventType "swiss"]
[EventCountry "BLR"]
[SourceTitle "playchess.com"]
[Source "ChessBase"]
[SourceQuality "1"]
[TimeControl "900+10"]

1. e4 {[%emt 0:00:00]} g6 {[%emt 0:00:00]} 2. d4 {[%emt 0:00:00]} Bg7 {[%emt 0:00:00]} 3. Nf3 {[%emt 0:00:00]} d6 {[%emt 0:00:00]} 4. Be2 {[%emt 0:00:00]} Nf6 {[%emt 0:00:00]} 5. Nc3 {[%emt 0:00:01]} a6 {[%emt 0:00:07]} 6. a4 {[%emt 0:00:04]} O-O {[%emt 0:00:13]} 7. O-O {[%emt 0:00:05]} Bg4 {[%emt 0:00:38]} 8. h3 {[%emt 0:00:06]} Bxf3 {[%emt 0:00:10]} 9. Bxf3 {[%emt 0:00:02]} Nc6 {[%emt 0:00:10]} 10. Be3 {[%emt 0:00:27]} Nd7 {[%emt 0:00:19]} 11. d5 {[%emt 0:00:48]} Nce5 {[%emt 0:00:11]} 12. Bf4 {[%emt 0:00:18]} Nc4 {[%emt 0:00:23]} 13. Rb1 {[%emt 0:00:18]} Nxb2 {[%emt 0:00:37]} 14. Rxb2 {[%emt 0:00:03]} Bxc3 {[%emt 0:00:03]} 15. Rb3 {[%emt 0:00:49]} Bg7 {[%emt 0:00:10]} 16. Be3 {[%emt 0:01:20]} b6 {[%emt 0:00:25]} 17. h4 {[%emt 0:00:37]} Ne5 {[%emt 0:00:24]} 18. h5 {[%emt 0:00:16]} Qd7 {[%emt 0:01:27]} 19. h6 {[%emt 0:06:01]} Bf6 {[%emt 0:00:07]} 20. Be2 {[%emt 0:03:13]} Qxa4 {[%emt 0:00:30]} 21. f4 {[%emt 0:00:05]} Nd7 {[%emt 0:01:56]} 22. Qd2 {[%emt 0:02:58]} Nb8 {[%emt 0:02:34]} 23. Rb4 {[%emt 0:00:21]} Qe8 {[%emt 0:00:48]} 24. Bd4 {[%emt 0:00:21]} Nd7 {[%emt 0:00:44]} 25. Bg4 {[%emt 0:00:44]} Rd8 {[%emt 0:01:38]} 26. Bxd7 {[%emt 0:00:03]} Rxd7 {[%emt 0:00:27]} 27. e5 {[%emt 0:00:07]} dxe5 {[%emt 0:00:04]} 28. fxe5 {[%emt 0:00:00]} Bh8 {[%emt 0:00:57]} 29. c4 {[%emt 0:00:23]} e6 {[%emt 0:00:23]} 30. d6 {[%emt 0:00:18]} c5 {[%emt 0:00:37]} 31. Rxb6 {[%emt 0:00:06]} cxd4 32. Qxd4 Qd8 {[%emt 0:01:59]} 33. c5 {[%emt 0:00:16]} Qg5 {[%emt 0:00:20]} 34. Re1 {[%emt 0:00:13]} Rfd8 {[%emt 0:00:14]} 35. c6 {[%emt 0:00:01]} Rxd6 {[%emt 0:00:10]} 36. Qxd6 {[%emt 0:00:21]} Rxd6 {[%emt 0:00:06]} 37. exd6 {[%emt 0:00:01]} Bd4+ {[%emt 0:00:03]} 38. Kf1 {[%emt 0:00:07]} Bxb6 {[%emt 0:00:13]} 39. c7 {[%emt 0:00:08]} Qb5+ {[%emt 0:00:09]} 40. Re2 {[%emt 0:00:04]} Qc5 {[%emt 0:00:48]} 41. Rd2 {[%emt 0:00:21]} Bxc7 {[%emt 0:00:23]} 42. dxc7 {[%emt 0:00:21]} Qxc7 {[%emt 0:00:02]} 43. Kf2 {[%emt 0:00:01]} Qf4+ {[%emt 0:00:08]} 44. Kg1 {[%emt 0:00:02]} Qxh6 {[%emt 0:00:02]} 45. Ra2 {[%emt 0:00:02]} Qe3+ {[%emt 0:00:04]} 46. Kh2 {[%emt 0:00:01]} Qe5+ {[%emt 0:00:03]} 47. Kg1 {[%emt 0:00:03]} a5 {[%emt 0:00:02]} 48. Kf2 {[%emt 0:00:03]} Qd4+ {[%emt 0:00:03]} 49. Kf3 {[%emt 0:00:01]} Qd5+ {[%emt 0:00:02]} 0-1

[Event "Kupreichik Memorial Rapid 2019"]
[Site "Minsk"]
[Date "2019.08.16"]
[Round "4.13"]
[White "Mikhailovsky, Vladimir"]
[Black "Naumovich, Yaroslav"]
[Result "1/2-1/2"]
[ECO "A06"]
[WhiteElo "2209"]
[BlackElo "1868"]
[Annotator "NA"]
[PlyCount "54"]
[EventDate "2019.08.15"]
[EventType "swiss"]
[EventCountry "BLR"]
[SourceTitle "playchess.com"]
[Source "ChessBase"]
[SourceQuality "1"]
[TimeControl "900+10"]

1. Nf3 {[%emt 0:00:00]} d5 {[%emt 0:00:00]} 2. b3 {[%emt 0:00:00]} Nf6 {[%emt 0:00:00]} 3. Bb2 {[%emt 0:00:00]} Bg4 {[%emt 0:00:04]} 4. Ne5 {[%emt 0:00:10]} Bh5 {[%emt 0:00:02]} 5. c4 {[%emt 0:00:23]} e6 {[%emt 0:00:06]} 6. g3 {[%emt 0:00:14]} c6 {[%emt 0:00:36]} 7. Bg2 {[%emt 0:00:05]} Nbd7 {[%emt 0:00:04]} 8. Nxd7 {[%emt 0:00:34]} Qxd7 {[%emt 0:00:47]} 9. cxd5 {[%emt 0:01:53]} exd5 {[%emt 0:01:33]} 10. O-O {[%emt 0:00:18]} Be7 {[%emt 0:00:17]} 11. d3 {[%emt 0:00:17]} O-O {[%emt 0:00:04]} 12. Qc2 {[%emt 0:00:10]} Rad8 {[%emt 0:00:31]} 13. e4 {[%emt 0:01:49]} dxe4 {[%emt 0:00:53]} 14. dxe4 {[%emt 0:00:02]} Qd3 {[%emt 0:02:21]} 15. Na3 {[%emt 0:01:13]} Qxc2 {[%emt 0:04:29]} 16. Nxc2 {[%emt 0:00:04]} Rd2 {[%emt 0:00:10]} 17. Rac1 {[%emt 0:00:39]} Be2 {[%emt 0:01:32]} 18. Bc3 {[%emt 0:05:40]} Bxf1 {[%emt 0:01:33]} 19. Bxd2 {[%emt 0:00:03]} Bxg2 {[%emt 0:00:01]} 20. Kxg2 {[%emt 0:00:02]} Nxe4 {[%emt 0:02:34]} 21. Re1 {[%emt 0:00:08]} f5 {[%emt 0:00:07]} 22. f3 {[%emt 0:01:39]} Nxd2 {[%emt 0:00:02]} 23. Rxe7 {[%emt 0:00:07]} Rf7 {[%emt 0:00:01]} 24. Re8+ {[%emt 0:00:16]} Rf8 {[%emt 0:00:03]} 25. Re7 {[%emt 0:00:09]} Rf7 {[%emt 0:00:02]} 26. Re8+ {[%emt 0:00:30]} Rf8 {[%emt 0:00:02]} 27. Re7 {[%emt 0:00:15]} Rf7 {[%emt 0:00:05]} 1/2-1/2

[Event "Kupreichik Memorial Rapid 2019"]
[Site "Minsk"]
[Date "2019.08.16"]
[Round "4.16"]
[White "Agapov, Sergey"]
[Black "Kiryliuk, Ilya"]
[Result "1/2-1/2"]
[ECO "D37"]
[WhiteElo "2265"]
[BlackElo "1948"]
[Annotator "NA"]
[PlyCount "69"]
[EventDate "2019.08.15"]
[EventType "swiss"]
[EventCountry "BLR"]
[SourceTitle "playchess.com"]
[Source "ChessBase"]
[SourceQuality "1"]
[TimeControl "900+10"]

1. d4 {[%emt 0:00:00]} Nf6 {[%emt 0:00:00]} 2. c4 {[%emt 0:00:00]} e6 {[%emt 0:00:00]} 3. Nc3 {[%emt 0:00:00]} d5 {[%emt 0:00:00]} 4. Nf3 {[%emt 0:00:00]} Be7 {[%emt 0:00:00]} 5. Qc2 {[%emt 0:00:00]} O-O {[%emt 0:00:00]} 6. Bg5 {[%emt 0:00:01]} c6 {[%emt 0:00:00]} 7. e3 {[%emt 0:00:02]} Nbd7 {[%emt 0:00:01]} 8. Rd1 {[%emt 0:00:04]} h6 {[%emt 0:00:01]} 9. cxd5 {[%emt 0:00:02]} hxg5 {[%emt 0:00:25]} 10. dxe6 {[%emt 0:00:02]} fxe6 {[%emt 0:00:01]} 11. Nxg5 {[%emt 0:00:02]} Nb6 {[%emt 0:00:08]} 12. Bd3 {[%emt 0:00:12]} Nfd5 {[%emt 0:00:23]} 13. Bh7+ {[%emt 0:00:02]} Kh8 {[%emt 0:00:01]} 14. Bg8 {[%emt 0:00:02]} Nf6 {[%emt 0:00:13]} 15. Bxe6 {[%emt 0:00:02]} Qd6 {[%emt 0:00:11]} 16. Nf7+ {[%emt 0:00:06]} Rxf7 {[%emt 0:00:02]} 17. Bxf7 {[%emt 0:00:02]} Be6 {[%emt 0:00:11]} 18. Bxe6 {[%emt 0:00:04]} Qxe6 {[%emt 0:00:01]} 19. O-O {[%emt 0:00:07]} Rf8 {[%emt 0:00:37]} 20. e4 {[%emt 0:00:22]} Qg4 {[%emt 0:00:01]} 21. f3 {[%emt 0:00:13]} Qg5 {[%emt 0:00:04]} 22. f4 {[%emt 0:00:03]} Qg6 {[%emt 0:00:14]} 23. Rd3 {[%emt 0:00:20]} Kg8 {[%emt 0:00:06]} 24. Rg3 {[%emt 0:00:41]} Qf7 {[%emt 0:00:08]} 25. f5 {[%emt 0:02:43]} Qc4 {[%emt 0:00:07]} 26. Rd1 {[%emt 0:00:03]} Rd8 {[%emt 0:00:10]} 27. b3 {[%emt 0:00:13]} Qb4 {[%emt 0:01:02]} 28. e5 {[%emt 0:00:54]} Nfd5 {[%emt 0:00:07]} 29. f6 {[%emt 0:01:05]} Bf8 {[%emt 0:01:13]} 30. Ne4 {[%emt 0:00:16]} Nd7 {[%emt 0:00:38]} 31. f7+ {[%emt 0:03:14]} Kxf7 {[%emt 0:00:01]} 32. Ng5+ {[%emt 0:00:01]} Ke7 {[%emt 0:00:18]} 33. Qg6 {[%emt 0:00:12]} Rb8 {[%emt 0:04:47]} 34. Qf7+ {[%emt 0:00:18]} Kd8 {[%emt 0:00:01]} 35. Ne6+ {[%emt 0:00:02]} 1/2-1/2

[Event "Kupreichik Memorial Rapid 2019"]
[Site "Minsk"]
[Date "2019.08.16"]
[Round "4.18"]
[White "Kochetkov, German"]
[Black "Oblamski, Vladimir"]
[Result "1-0"]
[ECO "A03"]
[WhiteElo "2277"]
[BlackElo "2088"]
[Annotator "NA"]
[PlyCount "109"]
[EventDate "2019.08.15"]
[EventType "swiss"]
[EventCountry "BLR"]
[SourceTitle "playchess.com"]
[Source "ChessBase"]
[SourceQuality "1"]
[TimeControl "900+10"]

1. f4 {[%emt 0:00:00]} d5 {[%emt 0:00:08]} 2. Nf3 {[%emt 0:00:00]} Nf6 {[%emt 0:00:02]} 3. g3 {[%emt 0:00:00]} g6 {[%emt 0:00:02]} 4. Bg2 {[%emt 0:00:00]} Bg7 {[%emt 0:00:02]} 5. O-O {[%emt 0:00:00]} O-O {[%emt 0:00:02]} 6. d3 {[%emt 0:00:00]} c5 {[%emt 0:00:06]} 7. Nc3 {[%emt 0:00:01]} Nc6 {[%emt 0:00:14]} 8. e4 {[%emt 0:00:09]} dxe4 {[%emt 0:01:20]} 9. dxe4 {[%emt 0:00:03]} Qxd1 {[%emt 0:00:03]} 10. Rxd1 {[%emt 0:00:01]} e5 {[%emt 0:01:12]} 11. Be3 {[%emt 0:00:06]} b6 {[%emt 0:00:13]} 12. Nd5 {[%emt 0:00:05]} Nxd5 {[%emt 0:00:46]} 13. exd5 {[%emt 0:00:02]} Nb4 {[%emt 0:00:01]} 14. Bf2 {[%emt 0:06:24]} Nxc2 {[%emt 0:02:07]} 15. Rac1 {[%emt 0:00:03]} Nd4 {[%emt 0:00:05]} 16. Bxd4 {[%emt 0:03:00]} exd4 {[%emt 0:00:10]} 17. b4 {[%emt 0:00:02]} Bg4 {[%emt 0:05:05]} 18. bxc5 {[%emt 0:00:07]} bxc5 {[%emt 0:00:01]} 19. Rxc5 {[%emt 0:00:02]} Rac8 {[%emt 0:00:31]} 20. Rc6 {[%emt 0:02:09]} Rcd8 {[%emt 0:01:51]} 21. Rd2 {[%emt 0:01:47]} Bxf3 22. Bxf3 {[%emt 0:00:01]} Rd7 {[%emt 0:00:42]} 23. Kf2 {[%emt 0:00:40]} Re8 {[%emt 0:00:34]} 24. Rdc2 {[%emt 0:00:38]} f5 {[%emt 0:00:33]} 25. Re2 {[%emt 0:00:21]} Rxe2+ {[%emt 0:01:00]} 26. Bxe2 {[%emt 0:00:04]} Kf8 {[%emt 0:00:15]} 27. d6 {[%emt 0:00:32]} Bf6 {[%emt 0:01:06]} 28. Bc4 {[%emt 0:00:06]} Rd8 {[%emt 0:00:51]} 29. Ke2 {[%emt 0:00:31]} d3+ {[%emt 0:00:01]} 30. Kd2 {[%emt 0:00:08]} Bb2 {[%emt 0:00:09]} 31. Be6 {[%emt 0:00:14]} Ba3 {[%emt 0:00:10]} 32. d7 {[%emt 0:00:02]} Ke7 {[%emt 0:00:10]} 33. Kxd3 {[%emt 0:00:41]} Bd6 {[%emt 0:00:03]} 34. Rc8 {[%emt 0:00:04]} a5 {[%emt 0:00:19]} 35. a4 {[%emt 0:00:08]} Bb4 {[%emt 0:00:09]} 36. Kc4 {[%emt 0:00:40]} Ba3 {[%emt 0:00:20]} 37. Kd5 {[%emt 0:00:07]} Bb4 {[%emt 0:00:03]} 38. Kc6 {[%emt 0:00:43]} Ba3 {[%emt 0:00:05]} 39. Rxd8 {[%emt 0:00:59]} Kxd8 {[%emt 0:00:02]} 40. Bg8 {[%emt 0:00:01]} h6 {[%emt 0:00:08]} 41. Bh7 {[%emt 0:00:01]} g5 {[%emt 0:00:02]} 42. fxg5 {[%emt 0:00:09]} hxg5 {[%emt 0:00:02]} 43. Bxf5 {[%emt 0:00:02]} Bb4 {[%emt 0:00:06]} 44. h4 {[%emt 0:00:10]} gxh4 {[%emt 0:00:03]} 45. gxh4 {[%emt 0:00:00]} Bd2 {[%emt 0:00:11]} 46. h5 {[%emt 0:00:02]} Bf4 {[%emt 0:00:05]} 47. Bg4 {[%emt 0:00:01]} Bd2 {[%emt 0:00:07]} 48. Kd6 {[%emt 0:00:01]} Bc1 {[%emt 0:00:40]} 49. Ke6 {[%emt 0:00:03]} Bd2 {[%emt 0:00:04]} 50. Be2 {[%emt 0:00:01]} Be3 {[%emt 0:00:04]} 51. Bb5 {[%emt 0:00:01]} Bd2 {[%emt 0:00:03]} 52. Kf7 {[%emt 0:00:01]} Be3 {[%emt 0:00:03]} 53. Kg7 {[%emt 0:00:03]} Ke7 {[%emt 0:00:01]} 54. h6 {[%emt 0:00:02]} Bd4+ {[%emt 0:00:06]} 55. Kg8 {[%emt 0:00:01]} 1-0

[Event "Kupreichik Memorial Rapid 2019"]
[Site "Minsk"]
[Date "2019.08.16"]
[Round "4.19"]
[White "Khrapko, Marharyta"]
[Black "Tsaruk, Maksim"]
[Result "0-1"]
[ECO "C95"]
[WhiteElo "2073"]
[BlackElo "2230"]
[Annotator "NA"]
[PlyCount "88"]
[EventDate "2019.08.15"]
[EventType "swiss"]
[EventCountry "BLR"]
[SourceTitle "playchess.com"]
[Source "ChessBase"]
[SourceQuality "1"]
[TimeControl "900+10"]

1. e4 {[%emt 0:00:00]} e5 {[%emt 0:00:00]} 2. Nf3 {[%emt 0:00:00]} Nc6 {[%emt 0:00:00]} 3. Bb5 {[%emt 0:00:00]} a6 {[%emt 0:00:00]} 4. Ba4 {[%emt 0:00:00]} Nf6 {[%emt 0:00:00]} 5. O-O {[%emt 0:00:00]} b5 {[%emt 0:00:00]} 6. Bb3 {[%emt 0:00:00]} Be7 {[%emt 0:00:00]} 7. Re1 {[%emt 0:00:00]} O-O {[%emt 0:00:00]} 8. h3 {[%emt 0:00:00]} d6 {[%emt 0:00:02]} 9. c3 {[%emt 0:00:01]} Nb8 {[%emt 0:00:02]} 10. d4 {[%emt 0:00:03]} Nbd7 {[%emt 0:00:02]} 11. Nbd2 {[%emt 0:00:04]} Bb7 {[%emt 0:00:01]} 12. Bc2 {[%emt 0:00:03]} Re8 {[%emt 0:00:01]} 13. Nf1 {[%emt 0:00:11]} Bf8 {[%emt 0:00:01]} 14. Ng3 {[%emt 0:00:10]} g6 {[%emt 0:00:03]} 15. b3 {[%emt 0:00:28]} c6 {[%emt 0:00:38]} 16. Bb2 {[%emt 0:00:04]} Bg7 {[%emt 0:00:08]} 17. c4 {[%emt 0:00:34]} exd4 {[%emt 0:03:43]} 18. Bxd4 {[%emt 0:00:18]} Qc7 {[%emt 0:04:03]} 19. Rc1 {[%emt 0:00:08]} Rad8 {[%emt 0:00:05]} 20. Bd3 {[%emt 0:01:41]} Qa5 {[%emt 0:01:05]} 21. Qc2 {[%emt 0:00:56]} Ne5 {[%emt 0:00:38]} 22. Nxe5 {[%emt 0:03:49]} dxe5 {[%emt 0:00:01]} 23. Be3 {[%emt 0:00:32]} Nd7 {[%emt 0:00:33]} 24. c5 {[%emt 0:00:53]} Nf8 {[%emt 0:00:14]} 25. Bg5 {[%emt 0:01:51]} Rd7 {[%emt 0:00:18]} 26. Be2 {[%emt 0:02:38]} Ne6 {[%emt 0:01:23]} 27. Be3 {[%emt 0:00:01]} Nd4 {[%emt 0:01:12]} 28. Qb2 {[%emt 0:00:01]} h5 {[%emt 0:00:08]} 29. b4 {[%emt 0:00:34]} Qd8 {[%emt 0:00:34]} 30. a4 {[%emt 0:00:18]} Kh7 {[%emt 0:00:31]} 31. Ra1 {[%emt 0:03:42]} Qh4 {[%emt 0:00:12]} 32. axb5 {[%emt 0:00:25]} axb5 {[%emt 0:00:02]} 33. Ra7 {[%emt 0:00:13]} Bc8 {[%emt 0:00:01]} 34. Rea1 {[%emt 0:00:07]} Rxa7 {[%emt 0:00:46]} 35. Rxa7 {[%emt 0:00:01]} Be6 {[%emt 0:00:01]} 36. Qd2 {[%emt 0:00:33]} Rd8 {[%emt 0:01:29]} 37. Bd3 {[%emt 0:00:27]} Bf6 {[%emt 0:01:10]} 38. Qc3 {[%emt 0:00:20]} Bg5 {[%emt 0:00:22]} 39. Kh2 {[%emt 0:00:02]} Bxe3 40. fxe3 {[%emt 0:00:01]} Nf3+ {[%emt 0:00:02]} 41. gxf3 Qxh3+ {[%emt 0:00:04]} 42. Kg1 {[%emt 0:00:22]} Qxg3+ {[%emt 0:00:01]} 43. Kf1 {[%emt 0:00:08]} Qxf3+ {[%emt 0:00:04]} 44. Ke1 {[%emt 0:00:04]} Qxe3+ {[%emt 0:00:02]} 0-1

[Event "Kupreichik Memorial Rapid 2019"]
[Site "Minsk"]
[Date "2019.08.16"]
[Round "4.20"]
[White "Leinov, Roman"]
[Black "Tyurin, Artem"]
[Result "1-0"]
[ECO "E04"]
[WhiteElo "2189"]
[BlackElo "2057"]
[Annotator "NA"]
[PlyCount "111"]
[EventDate "2019.08.15"]
[EventType "swiss"]
[EventCountry "BLR"]
[SourceTitle "playchess.com"]
[Source "ChessBase"]
[SourceQuality "1"]
[TimeControl "900+10"]

1. c4 {[%emt 0:00:00]} e6 {[%emt 0:00:00]} 2. Nf3 {[%emt 0:00:05]} Nf6 {[%emt 0:00:00]} 3. g3 {[%emt 0:00:04]} d5 {[%emt 0:00:00]} 4. d4 {[%emt 0:00:01]} dxc4 {[%emt 0:00:03]} 5. Bg2 {[%emt 0:00:14]} c5 {[%emt 0:00:01]} 6. O-O {[%emt 0:01:12]} Nc6 {[%emt 0:00:02]} 7. Ne5 {[%emt 0:00:32]} Bd7 {[%emt 0:00:25]} 8. Na3 {[%emt 0:00:57]} cxd4 {[%emt 0:00:57]} 9. Naxc4 {[%emt 0:00:04]} Rc8 {[%emt 0:01:13]} 10. Qb3 {[%emt 0:02:43]} Nxe5 {[%emt 0:04:37]} 11. Nxe5 {[%emt 0:00:04]} b6 {[%emt 0:00:02]} 12. e3 {[%emt 0:01:53]} dxe3 {[%emt 0:01:27]} 13. Bxe3 {[%emt 0:00:03]} Bd6 {[%emt 0:00:56]} 14. Nxd7 {[%emt 0:03:33]} Qxd7 {[%emt 0:03:16]} 15. Rad1 {[%emt 0:01:47]} Qe7 {[%emt 0:00:36]} 16. Qa4+ {[%emt 0:00:27]} Kf8 {[%emt 0:01:28]} 17. Rd3 {[%emt 0:01:38]} Nd7 {[%emt 0:01:02]} 18. Qxa7 {[%emt 0:00:57]} Nc5 {[%emt 0:00:09]} 19. Qxe7+ {[%emt 0:00:15]} Kxe7 {[%emt 0:00:03]} 20. Rd2 {[%emt 0:00:35]} Rhd8 {[%emt 0:00:24]} 21. Rfd1 {[%emt 0:00:02]} Na4 {[%emt 0:00:37]} 22. b3 {[%emt 0:00:46]} Nc3 {[%emt 0:00:33]} 23. Bxb6 {[%emt 0:00:04]} Nxd1 {[%emt 0:00:07]} 24. Bxd8+ {[%emt 0:00:03]} Rxd8 {[%emt 0:00:03]} 25. Rxd1 {[%emt 0:00:01]} Ba3 {[%emt 0:00:15]} 26. Rxd8 Kxd8 {[%emt 0:00:00]} 27. Kf1 {[%emt 0:00:02]} Kc7 {[%emt 0:00:02]} 28. Ke2 {[%emt 0:00:01]} Kd6 {[%emt 0:00:01]} 29. Kd3 {[%emt 0:00:02]} Kc5 {[%emt 0:00:01]} 30. Bf3 {[%emt 0:00:11]} f6 {[%emt 0:00:05]} 31. Bg4 {[%emt 0:00:04]} f5 {[%emt 0:00:20]} 32. Bh5 {[%emt 0:00:10]} g6 {[%emt 0:00:06]} 33. Bd1 {[%emt 0:00:02]} e5 {[%emt 0:00:24]} 34. f3 {[%emt 0:00:01]} Kb4 {[%emt 0:00:19]} 35. Kd2 {[%emt 0:00:20]} Bb2 {[%emt 0:00:14]} 36. Kc2 {[%emt 0:00:05]} Bd4 {[%emt 0:00:06]} 37. Be2 {[%emt 0:00:04]} Bg1 {[%emt 0:00:10]} 38. h3 {[%emt 0:00:02]} Bf2 {[%emt 0:00:08]} 39. g4 {[%emt 0:00:00]} f4 {[%emt 0:00:48]} 40. a4 {[%emt 0:00:04]} Bc5 {[%emt 0:00:16]} 41. Bc4 {[%emt 0:00:02]} Bb6 {[%emt 0:00:15]} 42. Kd3 {[%emt 0:00:01]} Bc5 {[%emt 0:00:09]} 43. Ke4 {[%emt 0:00:01]} Bd4 {[%emt 0:00:01]} 44. Kd5 {[%emt 0:00:04]} Bc3 {[%emt 0:00:19]} 45. Ke6 {[%emt 0:00:06]} Bd4 {[%emt 0:00:05]} 46. Kf7 {[%emt 0:00:01]} Bc3 {[%emt 0:00:02]} 47. g5 {[%emt 0:00:11]} e4 {[%emt 0:00:28]} 48. fxe4 {[%emt 0:00:03]} f3 {[%emt 0:00:01]} 49. Kg8 {[%emt 0:00:05]} Bd2 {[%emt 0:00:07]} 50. h4 {[%emt 0:00:05]} h5 {[%emt 0:00:08]} 51. Kf7 {[%emt 0:00:06]} Bxg5 {[%emt 0:00:22]} 52. hxg5 {[%emt 0:00:14]} h4 {[%emt 0:00:01]} 53. Bf1 {[%emt 0:00:05]} Kc3 {[%emt 0:00:04]} 54. e5 {[%emt 0:00:01]} Kd2 {[%emt 0:00:00]} 55. e6 {[%emt 0:00:03]} Ke1 {[%emt 0:00:01]} 56. Bh3 {[%emt 0:00:05]} 1-0